fUST/lending_fUST_20250827
["ID","MTS","AMOUNT","RATE_DAILY","PERIOD"]
[381638192,1756300255415,-598.63,0.00022465,2]
[381638194,1756300255425,-707.22,0.00022465,2]
[381638196,1756300255435,-592.64,0.00022465,2]
[381638198,1756300255447,-480.0,0.00022465,2]
[381638200,1756300255456,-480.0,0.00022465,2]
[381638202,1756300255466,-480.0,0.00022465,2]
[381638204,1756300255476,-480.0,0.00022465,2]
[381638206,1756300255487,-480.0,0.00022465,2]
[381638208,1756300255497,-480.0,0.00022465,2]
[381638210,1756300255507,-480.0,0.00022465,2]
[381638212,1756300255517,-480.0,0.00022465,2]
[381638214,1756300255527,-480.0,0.00022465,2]
[381638216,1756300255537,-499.75,0.00022465,2]
[381638218,1756300255547,-480.0,0.00022465,2]
[381638220,1756300255556,-500.0,0.00022465,2]
[381638222,1756300255566,-1499.56,0.00022465,2]
[381638224,1756300255577,-480.0,0.00022465,2]
[381638226,1756300255587,-536.82,0.00022465,2]
[381638228,1756300255597,-480.0,0.00022465,2]
[381638230,1756300255607,-480.0,0.00022465,2]
[381638232,1756300255617,-851.04,0.00022465,2]
[381638234,1756300255627,-480.0,0.00022465,2]
[381638236,1756300255637,-480.0,0.00022465,2]
[381638238,1756300255647,-480.0,0.00022465,2]
[381638240,1756300255660,-480.0,0.00022465,2]
[381638242,1756300255670,-621.12,0.00022465,2]
[381638244,1756300255680,-480.0,0.00022465,2]
[381638247,1756300255690,-480.0,0.00022465,2]
[381638248,1756300255700,-480.0,0.00022465,2]
[381638250,1756300255710,-502.73,0.00022465,2]
[381638252,1756300255720,-480.0,0.00022465,2]
[381638255,1756300255731,-540.63,0.00022465,2]
[381638257,1756300255741,-1154.23,0.00022465,2]
[381638259,1756300255752,-480.0,0.00022465,2]
[381638261,1756300255763,-551.64,0.00022465,2]
[381638263,1756300255775,-480.0,0.00022465,2]
[381638265,1756300255785,-480.0,0.00022465,2]
[381638267,1756300255796,-2209.59,0.00022465,2]
[381638269,1756300255806,-480.0,0.00022465,2]
[381638271,1756300255816,-480.0,0.00022465,2]
[381638273,1756300255826,-480.0,0.00022465,2]
[381638275,1756300255836,-480.0,0.00022465,2]
[381638277,1756300255846,-991.65,0.00022465,2]
[381638279,1756300255856,-480.0,0.00022465,2]
[381638281,1756300255866,-480.0,0.00022465,2]
[381638283,1756300255876,-1168.45,0.00022465,2]
[381638285,1756300255885,-480.0,0.00022465,2]
[381638287,1756300255895,-480.0,0.00022465,2]
[381638289,1756300255905,-227.8241137,0.00022465,2]
[381638291,1756300255916,-480.0,0.00022465,2]
[381638293,1756300255926,-687.72,0.00022465,2]
[381638295,1756300255936,-515.28,0.00022465,2]
[381638297,1756300255947,-480.0,0.00022465,2]
[381638299,1756300255957,-480.0,0.00022465,2]
[381638301,1756300255967,-480.0,0.00022465,2]
[381638303,1756300255977,-480.0,0.00022465,2]
[381638305,1756300255987,-480.0,0.00022465,2]
[381638307,1756300255997,-1375.52,0.00022465,2]
[381638309,1756300256006,-609.53,0.00022465,2]
[381638311,1756300256016,-480.0,0.00022465,2]
[381638313,1756300256026,-480.0,0.00022465,2]
[381638315,1756300256036,-480.0,0.00022465,2]
[381638317,1756300256046,-480.0,0.00022465,2]
[381638319,1756300256056,-480.0,0.00022465,2]
[381638321,1756300256067,-629.17,0.00022465,2]
[381638323,1756300256077,-480.0,0.00022465,2]
[381638325,1756300256087,-480.0,0.00022465,2]
[381638327,1756300256097,-480.0,0.00022465,2]
[381638329,1756300256107,-879.01,0.00022465,2]
[381638331,1756300256117,-480.0,0.00022465,2]
[381638333,1756300256127,-480.0,0.00022465,2]
[381638335,1756300256137,-480.0,0.00022465,2]
[381638337,1756300256148,-553.05,0.00022465,2]
[381638339,1756300256159,-480.0,0.00022465,2]
[381638341,1756300256169,-511.27,0.00022465,2]
[381638343,1756300256179,-480.0,0.00022465,2]
[381638345,1756300256190,-480.0,0.00022465,2]
[381638347,1756300256200,-480.0,0.00022465,2]
[381638349,1756300256210,-323.37968274,0.00022465,2]
[381638351,1756300256220,-480.0,0.00022465,2]
[381638353,1756300256232,-480.0,0.00022465,2]
[381638355,1756300256242,-152.043175,0.00022465,7]
[381638357,1756300256253,-480.0,0.00022465,2]
[381638359,1756300256263,-480.0,0.00022465,2]
[381638361,1756300256273,-480.0,0.00022465,2]
[381638363,1756300256283,-1185.91,0.00022465,2]
[381638365,1756300256294,-480.0,0.00022465,2]
[381638368,1756300256304,-1100.79,0.00022465,2]
[381638370,1756300256315,-480.0,0.00022465,2]
[381638371,1756300256327,-480.0,0.00022465,2]
[381638374,1756300256338,-480.0,0.00022465,2]
[381638376,1756300256348,-480.0,0.00022465,2]
[381638378,1756300256359,-480.0,0.00022465,2]
[381638389,1756300256549,-480.0,0.00022465,2]
[381638391,1756300256559,-674.82,0.00022465,2]
[381638393,1756300256568,-480.0,0.00022465,2]
[381638395,1756300256578,-480.0,0.00022465,2]
[381638397,1756300256588,-1582.66,0.00022465,2]
[381638399,1756300256597,-1441.98,0.00022465,2]
[381638400,1756300256607,-151.0,0.00022465,7]
[381638403,1756300256618,-480.0,0.00022465,2]
[381638405,1756300256628,-3079.94,0.00022465,2]
[381638407,1756300256639,-558.78,0.00022465,2]
[381638409,1756300256648,-480.0,0.00022465,2]
[381638411,1756300256659,-245.069521,0.00022465,7]
[381638413,1756300256669,-1247.25,0.00022465,2]
[381638415,1756300256679,-512.86,0.00022465,2]
[381638417,1756300256692,-535.83,0.00022465,2]
[381638419,1756300256702,-480.0,0.00022465,2]
[381638421,1756300256712,-619.84,0.00022465,2]
[381638423,1756300256722,-1012.69,0.00022465,2]
[381638425,1756300256732,-480.0,0.00022465,2]
[381638427,1756300256742,-480.0,0.00022465,2]
[381638429,1756300256752,-1558.31,0.00022465,2]
[381638431,1756300256762,-480.0,0.00022465,2]
[381638433,1756300256772,-575.32,0.00022465,2]
[381638435,1756300256782,-507.46530895,0.00022465,2]
[381638437,1756300256792,-480.0,0.00022465,2]
[381638439,1756300256801,-480.0,0.00022465,2]
[381638441,1756300256811,-480.0,0.00022465,2]
[381638443,1756300256821,-480.0,0.00022465,2]
[381638445,1756300256831,-480.0,0.00022465,2]
[381638447,1756300256841,-480.0,0.00022465,2]
[381638449,1756300256851,-1467.04,0.00022465,2]
[381638451,1756300256861,-480.0,0.00022465,2]
[381638453,1756300256871,-480.0,0.00022465,2]
[381638455,1756300256880,-1873.26,0.00022465,2]
[381638457,1756300256890,-480.0,0.00022465,2]
[381638459,1756300256899,-480.0,0.00022465,2]
[381638461,1756300256908,-480.0,0.00022465,2]
[381638464,1756300256918,-480.0,0.00022465,2]
[381638466,1756300256927,-504.11,0.00022465,2]
[381638468,1756300256938,-480.0,0.00022465,2]
[381638470,1756300256947,-480.0,0.00022465,2]
[381638472,1756300256957,-508.08,0.00022465,2]
[381638474,1756300256966,-480.0,0.00022465,2]
[381638476,1756300256975,-480.0,0.00022465,2]
[381638478,1756300256984,-480.0,0.00022465,2]
[381638480,1756300256994,-480.0,0.00022465,2]
[381638482,1756300257003,-2486.85,0.00022465,2]
[381638484,1756300257013,-480.0,0.00022465,2]
[381638486,1756300257023,-480.0,0.00022465,2]
[381638488,1756300257033,-480.0,0.00022465,2]
[381638490,1756300257042,-480.0,0.00022465,2]
[381638492,1756300257053,-480.0,0.00022465,2]
[381638494,1756300257063,-7496.55,0.00022465,2]
[381638496,1756300257073,-768.18,0.00022465,2]
[381638498,1756300257082,-480.0,0.00022465,2]
[381638500,1756300257092,-151.0,0.00022465,7]
[381638502,1756300257102,-480.0,0.00022465,2]
[381638504,1756300257112,-820.29,0.00022465,2]
[381638506,1756300257121,-487.65,0.00022465,2]
[381638508,1756300257131,-480.0,0.00022465,2]
[381638510,1756300257140,-480.0,0.00022465,2]
[381638512,1756300257150,-480.0,0.00022465,2]
[381638514,1756300257160,-480.0,0.00022465,2]
[381638516,1756300257170,-1126.02,0.00022465,2]
[381638518,1756300257180,-480.0,0.00022465,2]
[381638520,1756300257189,-1019.66,0.00022465,2]
[381638522,1756300257199,-480.0,0.00022465,2]
[381638524,1756300257209,-151.0,0.00022465,7]
[381638526,1756300257218,-4097.76,0.00022465,2]
[381638528,1756300257228,-480.0,0.00022465,2]
[381638530,1756300257237,-151.0,0.00022465,7]
[381638532,1756300257247,-481.99552742,0.00022465,2]
[381638534,1756300257256,-1538.8,0.00022465,2]
[381638536,1756300257266,-480.0,0.00022465,2]
[381638539,1756300257276,-480.0,0.00022465,2]
[381638541,1756300257286,-553.39,0.00022465,2]
[381638543,1756300257296,-480.0,0.00022465,2]
[381638545,1756300257306,-151.0,0.00022465,7]
[381638547,1756300257317,-563.16,0.00022465,2]
[381638549,1756300257328,-480.0,0.00022465,2]
[381638551,1756300257338,-480.0,0.00022465,2]
[381638553,1756300257348,-866.73,0.00022465,2]
[381638555,1756300257358,-532.37,0.00022465,2]
[381638557,1756300257369,-480.0,0.00022465,2]
[381638559,1756300257379,-1089.92,0.00022465,2]
[381638561,1756300257389,-480.0,0.00022465,2]
[381638563,1756300257399,-480.0,0.00022465,2]
[381638565,1756300257409,-480.0,0.00022465,2]
[381638567,1756300257420,-505.59557552,0.00022465,2]
[381638569,1756300257429,-480.0,0.00022465,2]
[381638571,1756300257438,-480.0,0.00022465,2]
[381638573,1756300257448,-480.0,0.00022465,2]
[381638575,1756300257458,-480.0,0.00022465,2]
[381638577,1756300257468,-151.0,0.00022465,7]
[381638579,1756300257478,-480.0,0.00022465,2]
[381638581,1756300257488,-619.83,0.00022465,2]
[381638583,1756300257498,-480.0,0.00022465,2]
[381638585,1756300257508,-480.0,0.00022465,2]
[381638587,1756300257518,-480.0,0.00022465,2]
[381638589,1756300257528,-549.77948427,0.00022465,2]
[381638591,1756300257538,-480.0,0.00022465,2]
[381638593,1756300257548,-1480.58,0.00022465,2]
[381638595,1756300257557,-480.0,0.00022465,2]
[381638597,1756300257574,-1080.29,0.00022465,2]
[381638599,1756300257584,-2783.48,0.00022465,2]
[381638601,1756300257594,-849.03,0.00022465,2]
[381638603,1756300257604,-480.0,0.00022465,2]
[381638605,1756300257623,-3788.9,0.00022465,2]
[381638607,1756300257633,-1045.46,0.00022465,2]
[381638609,1756300257644,-527.62,0.00022465,2]
[381638611,1756300257654,-151.0,0.00022465,7]
[381638613,1756300257664,-480.0,0.00022465,2]
[381638615,1756300257674,-480.0,0.00022465,2]
[381638617,1756300257684,-1135.21,0.00022465,2]
[381638619,1756300257695,-480.0,0.00022465,2]
[381638621,1756300257705,-1489.59,0.00022465,2]
[381638623,1756300257715,-480.0,0.00022465,2]
[381638625,1756300257725,-490.63944421,0.00022465,2]
[381638627,1756300257735,-480.0,0.00022465,2]
[381638629,1756300257745,-480.0,0.00022465,2]
[381638631,1756300257755,-480.0,0.00022465,2]
[381638633,1756300257764,-1171.32,0.00022465,2]
[381638635,1756300257775,-885.58,0.00022465,2]
[381638637,1756300257785,-480.0,0.00022465,2]
[381638639,1756300257795,-480.0,0.00022465,2]
[381638641,1756300257805,-506.58,0.00022465,2]
[381638643,1756300257815,-1373.52,0.00022465,2]
[381638645,1756300257824,-521.66,0.00022465,2]
[381638647,1756300257834,-994.97,0.00022465,2]
[381638650,1756300257844,-2291.1,0.00022465,2]
[381638652,1756300257854,-480.0,0.00022465,2]
[381638654,1756300257863,-4941.28,0.00022465,2]
[381638656,1756300257873,-480.0,0.00022465,2]
[381638658,1756300257883,-836.96,0.00022465,2]
[381638660,1756300257892,-480.0,0.00022465,2]
[381638662,1756300257902,-805.85,0.00022465,2]
[381638664,1756300257912,-480.0,0.00022465,2]
[381638666,1756300257922,-480.0,0.00022465,2]
[381638668,1756300257932,-480.0,0.00022465,2]
[381638670,1756300257942,-584.58,0.00022465,2]
[381638672,1756300257952,-509.64,0.00022465,2]
[381638674,1756300257963,-480.0,0.00022465,2]
[381638676,1756300257973,-151.0,0.00022465,7]
[381638678,1756300257982,-826.49,0.00022465,2]
[381638680,1756300257991,-480.0,0.00022465,2]
[381638682,1756300258001,-480.0,0.00022465,2]
[381638684,1756300258011,-151.0,0.00022465,7]
[381638686,1756300258021,-480.0,0.00022465,2]
[381638688,1756300258030,-826.37,0.00022465,2]
[381638690,1756300258040,-642.66,0.00022465,2]
[381638692,1756300258049,-495.41,0.00022465,2]
[381638694,1756300258060,-647.14,0.00022465,2]
[381638696,1756300258070,-195.41999239,0.00022465,2]
[381638698,1756300258080,-480.0,0.00022465,2]
[381638700,1756300258090,-480.0,0.00022465,2]
[381638702,1756300258100,-480.0,0.00022465,2]
[381638704,1756300258110,-480.0,0.00022465,2]
[381638706,1756300258120,-291.507741,0.00022465,7]
[381638708,1756300258130,-480.0,0.00022465,2]
[381638710,1756300258142,-713.97,0.00022465,2]
[381638712,1756300258152,-706.08,0.00022465,2]
[381638714,1756300258163,-258.443223,0.00022465,7]
[381638716,1756300258173,-151.0,0.00022465,7]
[381638719,1756300258182,-151.0,0.00022465,7]
[381638721,1756300258192,-480.0,0.00022465,2]
[381638722,1756300258202,-684.55,0.00022465,2]
[381638725,1756300258212,-1220.94,0.00022465,2]
[381638727,1756300258223,-562.5,0.00022465,2]
[381638729,1756300258234,-480.0,0.00022465,2]
[381638731,1756300258244,-480.0,0.00022465,2]
[381638733,1756300258257,-480.0,0.00022465,2]
[381638735,1756300258267,-480.0,0.00022465,2]
[381638737,1756300258277,-480.0,0.00022465,2]
[381638739,1756300258287,-650.16,0.00022465,2]
[381638741,1756300258297,-480.0,0.00022465,2]
[381638743,1756300258306,-480.0,0.00022465,2]
[381638745,1756300258316,-543.46,0.00022465,2]
[381638747,1756300258327,-480.0,0.00022465,2]
[381638749,1756300258339,-151.0,0.000225,9]
[381638751,1756300258349,-500.0,0.00022521,2]
[381638753,1756300258359,-1008.32274485,0.00022521,2]
[381638755,1756300258370,-1000.0,0.00022521,2]
[381638757,1756300258380,-250.0,0.00022521,2]
[381638759,1756300258390,-1000.0,0.00022521,2]
[381638761,1756300258399,-508.48830965,0.00022521,2]
[381638763,1756300258409,-514.87906202,0.00022521,2]
[381638765,1756300258418,-12767.24473551,0.00022639,2]
[381638767,1756300258427,-504.6289741,0.00022664,2]
[381638769,1756300258438,-151.0,0.000227,6]
[381638771,1756300258447,-1000.0,0.00022721,2]
[381638773,1756300258457,-479.24514191,0.00022721,2]
[381638775,1756300258466,-300.0,0.00022721,2]
[381638777,1756300258476,-480.0,0.00022739,2]
[381638779,1756300258485,-200.0,0.00022739,2]
[381638781,1756300258496,-484.65,0.00022739,2]
[381638783,1756300258506,-602.96,0.00022739,2]
[381638785,1756300258516,-480.0,0.00022739,2]
[381638787,1756300258526,-480.0,0.00022739,2]
[381638789,1756300258536,-602.45,0.00022739,2]
[381638791,1756300258546,-480.0,0.00022739,2]
[381638793,1756300258556,-480.0,0.00022739,2]
[381638795,1756300258566,-480.0,0.00022739,2]
[381638797,1756300258575,-480.0,0.00022739,2]
[381638799,1756300258585,-480.0,0.00022739,2]
[381638801,1756300258594,-480.0,0.00022739,2]
[381638803,1756300258604,-480.0,0.00022739,2]
[381638805,1756300258614,-480.0,0.00022739,2]
[381638807,1756300258624,-480.0,0.00022739,2]
[381638809,1756300258634,-517.62,0.00022739,2]
[381638811,1756300258644,-151.0,0.00022739,7]
[381638813,1756300258655,-480.0,0.00022739,2]
[381638815,1756300258667,-480.0,0.00022739,2]
[381638817,1756300258676,-480.0,0.00022739,2]
[381638819,1756300258686,-480.0,0.00022739,2]
[381638821,1756300258696,-152.648563,0.00022739,7]
[381638823,1756300258706,-480.0,0.00022739,2]
[381638825,1756300258717,-480.0,0.00022739,2]
[381638827,1756300258727,-480.0,0.00022739,2]
[381638829,1756300258736,-602.76347263,0.00022739,2]
[381638832,1756300258746,-863.12,0.00022739,2]
[381638834,1756300258756,-480.0,0.00022739,2]
[381638836,1756300258766,-480.0,0.00022739,2]
[381638838,1756300258776,-602.59,0.00022739,2]
[381638840,1756300258785,-480.0,0.00022739,2]
[381638842,1756300258795,-480.0,0.00022739,2]
[381638844,1756300258805,-480.0,0.00022739,2]
[381638846,1756300258814,-480.0,0.00022739,2]
[381638848,1756300258825,-480.0,0.00022739,2]
[381638850,1756300258834,-710.45,0.00022739,2]
[381638852,1756300258844,-480.0,0.00022739,2]
[381638854,1756300258853,-480.0,0.00022739,2]
[381638855,1756300258863,-480.0,0.00022739,2]
[381638857,1756300258879,-480.0,0.00022739,2]
[381638860,1756300258902,-480.0,0.00022739,2]
[381638862,1756300258934,-480.0,0.00022739,2]
[381638864,1756300258964,-480.0,0.00022739,2]
[381638866,1756300258987,-480.0,0.00022739,2]
[381638870,1756300259071,-480.0,0.00022739,2]
[381638872,1756300259093,-480.0,0.00022739,2]
[381638874,1756300259115,-740.24,0.00022739,2]
[381638876,1756300259138,-480.0,0.00022739,2]
[381638878,1756300259162,-549.84,0.00022739,2]
[381638880,1756300259189,-480.0,0.00022739,2]
[381638883,1756300259212,-480.0,0.00022739,2]
[381638885,1756300259222,-480.0,0.00022739,2]
[381638887,1756300259231,-480.0,0.00022739,2]
[381638889,1756300259240,-480.0,0.00022739,2]
[381638891,1756300259250,-480.0,0.00022739,2]
[381638893,1756300259259,-480.0,0.00022739,2]
[381638895,1756300259268,-480.0,0.00022739,2]
[381638897,1756300259278,-480.0,0.00022739,2]
[381638898,1756300259287,-1190.92,0.00022739,2]
[381638900,1756300259297,-480.0,0.00022739,2]
[381638902,1756300259308,-480.0,0.00022739,2]
[381638905,1756300259318,-653.11,0.00022739,2]
[381638906,1756300259331,-480.0,0.00022739,2]
[381638908,1756300259341,-701.02,0.00022739,2]
[381638911,1756300259351,-480.0,0.00022739,2]
[381638912,1756300259360,-480.0,0.00022739,2]
[381638914,1756300259371,-480.0,0.00022739,2]
[381638916,1756300259380,-480.0,0.00022739,2]
[381638918,1756300259389,-516.12417519,0.00022739,2]
[381638920,1756300259399,-480.0,0.00022739,2]
[381638922,1756300259409,-561.6,0.00022739,2]
[381638924,1756300259424,-480.0,0.00022739,2]
[381638926,1756300259433,-536.08,0.00022739,2]
[381638928,1756300259444,-785.56,0.00022739,2]
[381638930,1756300259453,-707.7,0.00022739,2]
[381638932,1756300259462,-480.0,0.00022739,2]
[381638934,1756300259472,-480.0,0.00022739,2]
[381638936,1756300259482,-480.0,0.00022739,2]
[381638938,1756300259492,-480.0,0.00022739,2]
[381638940,1756300259501,-848.07,0.00022739,2]
[381638942,1756300259510,-480.0,0.00022739,2]
[381638944,1756300259520,-480.0,0.00022739,2]
[381638946,1756300259529,-520.83923092,0.00022739,2]
[381638948,1756300259538,-480.0,0.00022739,2]
[381638950,1756300259547,-480.0,0.00022739,2]
[381638952,1756300259557,-480.0,0.00022739,2]
[381638954,1756300259566,-480.0,0.00022739,2]
[381638956,1756300259575,-480.0,0.00022739,2]
[381638958,1756300259584,-480.0,0.00022739,2]
[381638960,1756300259593,-480.0,0.00022739,2]
[381638962,1756300259602,-521.2929728,0.00022739,2]
[381638964,1756300259611,-480.0,0.00022739,2]
[381638966,1756300259620,-480.0,0.00022739,2]
[381638968,1756300259631,-1132.16,0.00022739,2]
[381638970,1756300259640,-480.0,0.00022739,2]
[381638972,1756300259649,-480.0,0.00022739,2]
[381638974,1756300259658,-480.0,0.00022739,2]
[381638976,1756300259670,-480.0,0.00022739,2]
[381638978,1756300259680,-668.2,0.00022739,2]
[381638980,1756300259689,-480.0,0.00022739,2]
[381638982,1756300259698,-480.0,0.00022739,2]
[381638984,1756300259708,-480.0,0.00022739,2]
[381638986,1756300259717,-592.01,0.00022739,2]
[381638988,1756300259727,-480.0,0.00022739,2]
[381638990,1756300259737,-480.0,0.00022739,2]
[381638992,1756300259746,-480.0,0.00022739,2]
[381638994,1756300259755,-480.0,0.00022739,2]
[381638996,1756300259764,-480.0,0.00022739,2]
[381638998,1756300259774,-480.0,0.00022739,2]
[381639000,1756300259783,-480.0,0.00022739,2]
[381639002,1756300259792,-480.0,0.00022739,2]
[381639004,1756300259801,-1077.95,0.00022739,2]
[381639006,1756300259810,-480.0,0.00022739,2]
[381639008,1756300259820,-480.0,0.00022739,2]
[381639010,1756300259829,-368.05771639,0.00022739,2]
[381639012,1756300259838,-480.0,0.00022739,2]
[381639014,1756300259848,-480.0,0.00022739,2]
[381639016,1756300259857,-480.0,0.00022739,2]
[381639018,1756300259866,-480.0,0.00022739,2]
[381639020,1756300259875,-480.0,0.00022739,2]
[381639022,1756300259885,-480.0,0.00022739,2]
[381639024,1756300259894,-528.98,0.00022739,2]
[381639026,1756300259904,-480.0,0.00022739,2]
[381639028,1756300259914,-557.3,0.00022739,2]
[381639030,1756300259924,-480.0,0.00022739,2]
[381639032,1756300259933,-482.45,0.00022739,2]
[381639034,1756300259943,-480.0,0.00022739,2]
[381639036,1756300259952,-480.0,0.00022739,2]
[381639038,1756300259961,-622.33,0.00022739,2]
[381639040,1756300259971,-480.0,0.00022739,2]
[381639042,1756300259980,-480.0,0.00022739,2]
[381639044,1756300259989,-522.2,0.00022739,2]
[381639046,1756300259999,-480.0,0.00022739,2]
[381639048,1756300260008,-480.0,0.00022739,2]
[381639050,1756300260017,-480.0,0.00022739,2]
[381639052,1756300260027,-480.0,0.00022739,2]
[381639054,1756300260037,-682.64,0.00022739,2]
[381639056,1756300260046,-480.0,0.00022739,2]
[381639058,1756300260056,-480.0,0.00022739,2]
[381639060,1756300260066,-480.0,0.00022739,2]
[381639062,1756300260076,-480.0,0.00022739,2]
[381639064,1756300260085,-480.0,0.00022739,2]
[381639066,1756300260095,-480.0,0.00022739,2]
[381639068,1756300260105,-480.0,0.00022739,2]
[381639070,1756300260114,-480.0,0.00022739,2]
[381639072,1756300260123,-480.0,0.00022739,2]
[381639075,1756300260134,-496.41,0.00022739,2]
[381639077,1756300260144,-480.0,0.00022739,2]
[381639079,1756300260154,-480.0,0.00022739,2]
[381639081,1756300260164,-480.0,0.00022739,2]
[381639083,1756300260173,-480.0,0.00022739,2]
[381639085,1756300260181,-480.0,0.00022739,2]
[381639087,1756300260189,-961.54,0.00022739,2]
[381639089,1756300260198,-480.0,0.00022739,2]
[381639091,1756300260207,-541.92,0.00022739,2]
[381639093,1756300260217,-480.0,0.00022739,2]
[381639094,1756300260227,-480.0,0.00022739,2]
[381639097,1756300260238,-489.46,0.00022739,2]
[381639099,1756300260248,-480.0,0.00022739,2]
[381639101,1756300260259,-480.0,0.00022739,2]
[381639103,1756300260269,-483.97,0.00022739,2]
[381639105,1756300260280,-572.57,0.00022739,2]
[381639107,1756300260290,-524.23,0.00022739,2]
[381639109,1756300260300,-480.0,0.00022739,2]
[381639111,1756300260310,-480.0,0.00022739,2]
[381639113,1756300260321,-787.06,0.00022739,2]
[381639115,1756300260336,-480.0,0.00022739,2]
[381639117,1756300260346,-518.41,0.00022739,2]
[381639119,1756300260356,-480.0,0.00022739,2]
[381639121,1756300260367,-480.0,0.00022739,2]
[381639124,1756300260377,-480.0,0.00022739,2]
[381639126,1756300260387,-480.0,0.00022739,2]
[381639128,1756300260397,-480.0,0.00022739,2]
[381639129,1756300260406,-480.0,0.00022739,2]
[381639131,1756300260420,-739.43,0.00022739,2]
[381639134,1756300260429,-480.0,0.00022739,2]
[381639135,1756300260438,-480.0,0.00022739,2]
[381639137,1756300260448,-1255.57,0.00022739,2]
[381639139,1756300260458,-493.24,0.00022739,2]
[381639141,1756300260467,-480.0,0.00022739,2]
[381639143,1756300260477,-480.0,0.00022739,2]
[381639145,1756300260487,-598.58,0.00022739,2]
[381639147,1756300260496,-641.42,0.00022739,2]
[381639150,1756300260506,-480.0,0.00022739,2]
[381639152,1756300260515,-480.0,0.00022739,2]
[381639154,1756300260525,-728.84,0.00022739,2]
[381639156,1756300260535,-480.0,0.00022739,2]
[381639158,1756300260545,-480.0,0.00022739,2]
[381639160,1756300260554,-696.31,0.00022739,2]
[381639162,1756300260563,-157.26262287,0.00022739,2]
[381639164,1756300260572,-480.0,0.00022739,2]
[381639166,1756300260582,-480.0,0.00022739,2]
[381639168,1756300260591,-600.0,0.00022739,2]
[381639170,1756300260601,-550.69,0.00022739,2]
[381639172,1756300260611,-400.0,0.00022739,2]
[381639174,1756300260621,-480.0,0.00022739,2]
[381639176,1756300260630,-555.64,0.00022739,2]
[381639178,1756300260640,-480.0,0.00022739,2]
[381639180,1756300260650,-417.25242054,0.00022739,2]
[381639182,1756300260660,-480.0,0.00022739,2]
[381639184,1756300260673,-194.03894444,0.00022739,2]
[381639186,1756300260683,-480.0,0.00022739,2]
[381639188,1756300260692,-480.0,0.00022739,2]
[381639190,1756300260702,-480.0,0.00022739,2]
[381639192,1756300260711,-480.0,0.00022739,2]
[381639194,1756300260721,-516.93,0.00022739,2]
[381639196,1756300260730,-480.0,0.00022739,2]
[381639198,1756300260740,-480.0,0.00022739,2]
[381639200,1756300260750,-480.0,0.00022739,2]
[381639202,1756300260759,-480.0,0.00022739,2]
[381639204,1756300260768,-480.0,0.00022739,2]
[381639206,1756300260778,-480.0,0.00022739,2]
[381639208,1756300260787,-500.0,0.00022739,2]
[381639210,1756300260797,-480.0,0.00022739,2]